fUSD/lending_fUSD_20240708
["ID","MTS","AMOUNT","RATE_DAILY","PERIOD"]
[331442466,1720416632680,-350.43,0.0001255,2]
[331442467,1720416632691,-1173.0178889,0.00012588,2]
[331442468,1720416632701,-27714.58,0.00012598,2]
[331442469,1720416632712,-4385.19342407,0.000126,2]
[331442470,1720416632725,-20597.9,0.000126,2]
[331442485,1720416637835,-324.93960865,0.00012598,2]
[331442486,1720416637849,-172101.48277593,0.000126,2]
[331442487,1720416637861,-68022.5205,0.000126,2]
[331442488,1720416637872,-499.99,0.000126,2]
[331442489,1720416637882,-500.0,0.00012698,2]
[331442490,1720416637893,-500.0,0.00012698,2]
[331442491,1720416637906,-500.0,0.00012698,2]
[331442492,1720416637916,-500.0,0.00012698,2]
[331442493,1720416637927,-500.0,0.00012698,2]
[331442494,1720416637939,-500.0,0.00012698,2]
[331442495,1720416637950,-500.0,0.00012698,2]
[331442496,1720416637963,-500.0,0.00012698,2]
[331442497,1720416637975,-500.0,0.00012698,2]
[331442498,1720416637988,-500.0,0.00012698,2]
[331442499,1720416638000,-500.0,0.00012698,2]
[331442500,1720416638012,-500.0,0.00012698,2]
[331442501,1720416638026,-500.0,0.00012698,2]
[331442502,1720416638037,-500.0,0.00012698,2]
[331442503,1720416638050,-500.0,0.00012698,2]
[331442504,1720416638060,-500.0,0.00012698,2]
[331442505,1720416638073,-500.0,0.00012698,2]
[331442506,1720416638084,-500.0,0.00012698,2]
[331442507,1720416638100,-500.0,0.00012698,2]
[331442508,1720416638113,-500.0,0.00012698,2]
[331442509,1720416638125,-500.0,0.00012698,2]
[331442510,1720416638141,-500.0,0.00012698,2]
[331442511,1720416638153,-500.0,0.00012698,2]
[331442512,1720416638167,-500.0,0.00012698,2]
[331442513,1720416638181,-500.0,0.00012698,2]
[331442514,1720416638194,-500.0,0.00012698,2]
[331442515,1720416638208,-500.0,0.00012698,2]
[331442516,1720416638220,-500.0,0.00012698,2]
[331442519,1720416638233,-500.0,0.00012698,2]
[331442521,1720416638244,-500.0,0.00012698,2]
[331442523,1720416638255,-500.0,0.00012698,2]
[331442525,1720416638267,-500.0,0.00012698,2]
[331442527,1720416638279,-500.0,0.00012698,2]
[331442529,1720416638293,-500.0,0.00012698,2]
[331442531,1720416638306,-500.0,0.00012698,2]
[331442534,1720416638319,-500.0,0.00012698,2]
[331442536,1720416638332,-500.0,0.00012698,2]
[331442538,1720416638352,-500.0,0.00012698,2]
[331442540,1720416638365,-500.0,0.00012698,2]
[331442543,1720416638377,-500.0,0.00012698,2]
[331442545,1720416638388,-500.0,0.00012698,2]
[331442547,1720416638404,-500.0,0.00012698,2]
[331442549,1720416638418,-500.0,0.00012698,2]
[331442552,1720416638432,-500.0,0.00012698,2]
[331442554,1720416638446,-500.0,0.00012698,2]
[331442556,1720416638459,-500.0,0.00012698,2]
[331442558,1720416638472,-500.0,0.00012698,2]
[331442560,1720416638484,-500.0,0.00012698,2]
[331442562,1720416638495,-500.0,0.00012698,2]
[331442564,1720416638505,-500.0,0.00012698,2]
[331442565,1720416638515,-500.0,0.00012698,2]
[331442566,1720416638526,-500.0,0.00012698,2]
[331442567,1720416638536,-500.0,0.00012698,2]
[331442568,1720416638548,-500.0,0.00012698,2]
[331442569,1720416638560,-500.0,0.00012698,2]
[331442570,1720416638573,-500.0,0.00012698,2]
[331442571,1720416638586,-500.0,0.00012698,2]
[331442572,1720416638606,-500.0,0.00012698,2]
[331442574,1720416638620,-500.0,0.00012698,2]
[331442577,1720416638631,-500.0,0.00012698,2]
[331442579,1720416638643,-500.0,0.00012698,2]
[331442581,1720416638655,-500.0,0.00012698,2]
[331442583,1720416638667,-500.0,0.00012698,2]
[331442585,1720416638680,-500.0,0.00012698,2]
[331442587,1720416638691,-500.0,0.00012698,2]
[331442589,1720416638703,-500.0,0.00012698,2]
[331442591,1720416638716,-500.0,0.00012698,2]
[331442594,1720416638727,-500.0,0.00012698,2]
[331442596,1720416638738,-500.0,0.00012698,2]
[331442598,1720416638750,-500.0,0.00012698,2]
[331442600,1720416638760,-500.0,0.00012698,2]
[331442602,1720416638773,-509.25,0.00012698,2]
[331442604,1720416638785,-500.0,0.00012698,2]
[331442606,1720416638797,-500.0,0.00012698,2]
[331442608,1720416638808,-500.0,0.00012698,2]
[331442610,1720416638819,-500.0,0.00012698,2]
[331442612,1720416638830,-500.0,0.00012698,2]
[331442615,1720416638852,-500.0,0.00012698,2]
[331442618,1720416638863,-500.0,0.00012698,2]
[331442620,1720416638875,-500.0,0.00012698,2]
[331442622,1720416638886,-500.0,0.00012698,2]
[331442624,1720416638898,-500.0,0.00012698,2]
[331442626,1720416638910,-500.0,0.00012698,2]
[331442628,1720416638923,-500.0,0.00012698,2]
[331442631,1720416638936,-500.0,0.00012698,2]
[331442633,1720416638948,-500.0,0.00012698,2]
[331442635,1720416638959,-500.0,0.00012698,2]
[331442637,1720416638970,-500.0,0.00012698,2]
[331442639,1720416638981,-500.0,0.00012698,2]
[331442641,1720416638992,-500.0,0.00012698,2]
[331442643,1720416639003,-500.0,0.00012698,2]
[331442646,1720416639015,-500.0,0.00012698,2]
[331442648,1720416639027,-500.0,0.00012698,2]
[331442650,1720416639040,-500.0,0.00012698,2]
[331442652,1720416639052,-500.0,0.00012698,2]
[331442654,1720416639064,-500.0,0.00012698,2]
[331442657,1720416639077,-500.0,0.00012698,2]
[331442659,1720416639090,-500.0,0.00012698,2]
[331442661,1720416639102,-500.0,0.00012698,2]
[331442663,1720416639113,-500.0,0.00012698,2]
[331442665,1720416639125,-500.0,0.00012698,2]
[331442667,1720416639141,-500.0,0.00012698,2]
[331442669,1720416639154,-500.0,0.00012698,2]
[331442671,1720416639167,-500.0,0.00012698,2]
[331442673,1720416639179,-500.0,0.00012698,2]
[331442676,1720416639192,-500.0,0.00012698,2]
[331442678,1720416639204,-500.0,0.00012698,2]
[331442680,1720416639219,-500.0,0.00012698,2]
[331442682,1720416639233,-500.0,0.00012698,2]
[331442684,1720416639246,-500.0,0.00012698,2]
[331442686,1720416639259,-500.0,0.00012698,2]
[331442688,1720416639271,-500.0,0.00012698,2]
[331442690,1720416639284,-500.0,0.00012698,2]
[331442692,1720416639297,-500.0,0.00012698,2]
[331442694,1720416639310,-500.0,0.00012698,2]
[331442697,1720416639323,-500.0,0.00012698,2]
[331442699,1720416639336,-500.0,0.00012698,2]
[331442701,1720416639351,-500.0,0.00012698,2]
[331442703,1720416639363,-500.0,0.00012698,2]
[331442705,1720416639377,-500.0,0.00012698,2]
[331442707,1720416639390,-500.0,0.00012698,2]
[331442710,1720416639403,-500.0,0.00012698,2]
[331442712,1720416639415,-500.0,0.00012698,2]
[331442714,1720416639428,-500.0,0.00012698,2]
[331442716,1720416639441,-500.0,0.00012698,2]
[331442718,1720416639453,-500.0,0.00012698,2]
[331442720,1720416639464,-500.0,0.00012698,2]
[331442722,1720416639477,-500.0,0.00012698,2]
[331442725,1720416639489,-500.0,0.00012698,2]
[331442727,1720416639501,-500.0,0.00012698,2]
[331442729,1720416639513,-500.0,0.00012698,2]
[331442731,1720416639525,-500.0,0.00012698,2]
[331442733,1720416639536,-404.12,0.00012698,2]
[331442735,1720416639548,-500.0,0.00012698,2]
[331442737,1720416639561,-500.0,0.00012698,2]
[331442740,1720416639574,-500.0,0.00012698,2]
[331442743,1720416639586,-500.0,0.00012698,2]
[331442745,1720416639601,-500.0,0.00012698,2]
[331442747,1720416639613,-500.0,0.00012698,2]
[331442748,1720416639624,-500.0,0.00012698,2]
[331442750,1720416639637,-500.0,0.00012698,2]
[331442752,1720416639649,-500.0,0.00012698,2]
[331442754,1720416639661,-500.0,0.00012698,2]
[331442756,1720416639673,-500.0,0.00012698,2]
[331442758,1720416639685,-500.0,0.00012698,2]
[331442760,1720416639697,-500.0,0.00012698,2]
[331442762,1720416639708,-500.0,0.00012698,2]
[331442764,1720416639720,-500.0,0.00012698,2]
[331442765,1720416639732,-500.0,0.00012698,2]
[331442767,1720416639743,-500.0,0.00012698,2]
[331442769,1720416639756,-500.0,0.00012698,2]
[331442771,1720416639768,-500.0,0.00012698,2]
[331442773,1720416639780,-500.0,0.00012698,2]
[331442775,1720416639792,-500.0,0.00012698,2]
[331442777,1720416639804,-500.0,0.00012698,2]
[331442779,1720416639816,-500.0,0.00012698,2]
[331442780,1720416639827,-500.0,0.00012698,2]
[331442782,1720416639838,-500.0,0.00012698,2]
[331442784,1720416639852,-500.0,0.00012698,2]
[331442786,1720416639864,-500.0,0.00012698,2]
[331442788,1720416639875,-500.0,0.00012698,2]
[331442790,1720416639886,-500.0,0.00012698,2]
[331442792,1720416639898,-500.0,0.00012698,2]
[331442794,1720416639909,-500.0,0.00012698,2]
[331442796,1720416639921,-314.78,0.00012698,2]
[331442798,1720416639932,-500.0,0.00012698,2]
[331442800,1720416639944,-500.0,0.00012698,2]
[331442802,1720416639955,-300.0,0.000128,2]
[331442804,1720416639967,-329.92,0.000128,2]
[331442806,1720416639978,-164.97,0.00012878,2]
[331442808,1720416639989,-150.0,0.00012878,2]
[331442809,1720416640001,-500.0,0.00012896,2]
[331442811,1720416640012,-192.64367936,0.000129,2]
[331442813,1720416640024,-150.0,0.000129,2]
[331442815,1720416640035,-192.64367931,0.00012927,2]
[331442817,1720416640047,-178.04122079,0.00012967,2]
[331442819,1720416640059,-1000.0,0.0001297,2]
[331442821,1720416640071,-1000.0,0.0001297,2]
[331442823,1720416640082,-1000.0,0.0001297,2]
[331442825,1720416640097,-1000.0,0.0001297,2]
[331442826,1720416640109,-1917.27539911,0.0001297,2]
[331442828,1720416640120,-500.0,0.0001297,2]
[331442830,1720416640135,-500.0,0.0001297,2]
[331442832,1720416640149,-500.0,0.0001297,2]
[331442834,1720416640160,-688.16685693,0.0001297,2]
[331442836,1720416640172,-324.93960865,0.00013058,2]
[331442838,1720416640183,-500.0,0.00013127,2]
[331442840,1720416640195,-462.12662794,0.00013128,2]
[331442842,1720416640207,-3292.424231,0.00013148,2]
[331442844,1720416640220,-2662.815406,0.00013148,2]
[331442846,1720416640232,-176.394123,0.00013148,2]
[331442848,1720416640243,-1767.202136,0.00013148,2]
[331442850,1720416640255,-152.696415,0.00013148,2]
[331442852,1720416640266,-198.106994,0.00013148,2]
[331442853,1720416640278,-3292.424231,0.00013148,2]
[331442854,1720416640290,-180.656687,0.00013148,2]
[331442855,1720416640301,-2550.929376,0.00013148,2]
[331442856,1720416640312,-169.482338,0.00013148,2]
[331442857,1720416640324,-183.066611,0.00013148,2]
[331442858,1720416640335,-196.392427,0.00013148,2]
[331442859,1720416640348,-1804.100146,0.00013148,2]
[331442860,1720416640359,-151.6,0.0001319,2]
[331442861,1720416640370,-151.62,0.0001319,2]
[331442862,1720416640382,-329.56,0.0001319,2]
[331442863,1720416640394,-150.0,0.0001319,2]
[331442864,1720416640405,-166.76,0.0001319,2]
[331442865,1720416640416,-150.0,0.0001319,2]
[331442866,1720416640427,-366.41,0.0001319,2]
[331442867,1720416640438,-164.9,0.0001319,2]
[331442868,1720416640449,-150.0,0.000132,2]
[331442869,1720416640460,-4343.934,0.00013205,2]
[331442870,1720416640471,-1107.723,0.00013205,2]
[331442871,1720416640482,-5814.0,0.00013205,2]
[331442872,1720416640494,-1846.945,0.00013205,2]
[331442873,1720416640505,-362.018,0.00013205,2]
[331442874,1720416640517,-467.741,0.00013205,2]
[331442875,1720416640528,-14714.414,0.00013205,2]
[331442876,1720416640539,-192.64367931,0.00013256,2]
[331442877,1720416640551,-1000.0,0.00013267,2]
[331442878,1720416640562,-3292.424231,0.00013312,2]
[331442879,1720416640574,-2662.815406,0.00013312,2]
[331442880,1720416640585,-1767.202136,0.00013312,2]
[331442881,1720416640598,-3292.424231,0.00013312,2]
[331442882,1720416640609,-2550.929376,0.00013312,2]
[331442883,1720416640620,-1804.100146,0.00013312,2]
[331442884,1720416640632,-1600.0,0.0001335,2]
[331442885,1720416640643,-300.416,0.0001335,2]
[331442886,1720416640654,-150.439,0.00013385,2]
[331442887,1720416640665,-2376.0,0.00013385,2]
[331442888,1720416640676,-1304.0,0.00013385,2]
[331442889,1720416640687,-3249.0,0.00013385,2]
[331442890,1720416640698,-1964.0,0.00013385,2]
[331442891,1720416640709,-548.0,0.00013385,2]
[331442892,1720416640720,-1071.0,0.00013385,2]
[331442893,1720416640732,-200.0,0.000134,4]
[331442894,1720416640743,-150.0,0.00013407,2]
[331442895,1720416640754,-1036.18949039,0.00013424,2]
[331442896,1720416640765,-178.04122079,0.00013433,2]
[331442897,1720416640776,-150.0,0.00013435,2]
[331442898,1720416640787,-150.0,0.00013453,2]
[331442899,1720416640798,-150.0,0.00013457,2]
[331442900,1720416640810,-150.0,0.00013462,2]
[331442901,1720416640821,-150.0,0.00013463,2]
[331442902,1720416640833,-3292.424231,0.00013477,2]
[331442903,1720416640846,-2662.815406,0.00013477,2]
[331442904,1720416640857,-1767.202136,0.00013477,2]
[331442905,1720416640869,-152.696415,0.00013477,2]
[331442906,1720416640880,-3292.424231,0.00013477,2]
[331442907,1720416640892,-169.482338,0.00013477,2]
[331442908,1720416640904,-2550.929376,0.00013477,2]
[331442909,1720416640915,-183.066611,0.00013477,2]
[331442910,1720416640927,-1804.100146,0.00013477,2]
[331442911,1720416640938,-150.0,0.00013482,2]
[331442912,1720416640949,-150.0,0.00013488,2]
[331442913,1720416640960,-150.0,0.00013488,2]
[331442914,1720416640971,-300.0,0.00013489,2]
[331442915,1720416640982,-150.0,0.00013492,2]
[331442916,1720416640993,-150.0,0.00013497,2]
[331442917,1720416641003,-150.0,0.00013498,2]
[331442918,1720416641014,-150.0,0.00013498,2]
[331442919,1720416641026,-1000.0,0.000135,2]
[331442920,1720416641037,-500.0,0.000135,4]
[331442921,1720416641048,-225.0,0.000135,2]
[331442922,1720416641059,-511.4,0.000135,2]
[331442923,1720416641074,-356.0,0.000135,2]
[331442924,1720416641085,-150.0,0.00013502,2]
[331442925,1720416641096,-150.0,0.00013502,2]
[331442926,1720416641107,-1514.59732339,0.00013504,2]
[331442927,1720416641118,-150.0,0.00013517,2]
[331442928,1720416641135,-150.0,0.00013526,2]
[331442929,1720416641147,-150.0,0.00013536,2]
[331442930,1720416641157,-150.0,0.00013543,2]
[331442931,1720416641170,-150.0,0.00013552,2]
[331442932,1720416641181,-150.0,0.00013556,2]
[331442933,1720416641192,-150.0,0.00013557,2]
[331442934,1720416641203,-150.0,0.00013558,2]
[331442935,1720416641215,-150.0,0.00013564,2]
[331442936,1720416641228,-150.0,0.00013567,2]
[331442937,1720416642345,-1000.0,0.0001357,2]
[331442938,1720416642366,-500.0,0.0001357,2]
[331442952,1720416642600,-150.0,0.00013572,2]
[331442953,1720416642629,-150.0,0.0001358,2]
[331442954,1720416642654,-192.64367931,0.00013585,2]
[331442955,1720416642666,-500.0,0.00013587,2]
[331442956,1720416642676,-220.51,0.00013589,3]
[331442957,1720416642686,-385.96925274,0.00013595,2]
[331442958,1720416642696,-700.0,0.000136,4]
[331442959,1720416642707,-150.0,0.00013612,2]
[331442960,1720416642716,-150.0,0.00013619,2]
[331442961,1720416642727,-150.0,0.00013632,2]
[331442962,1720416642737,-150.0,0.00013632,2]
[331442963,1720416642747,-150.0,0.00013633,2]
[331442964,1720416642756,-150.0,0.00013634,2]
[331442965,1720416642766,-150.0,0.00013636,2]
[331442966,1720416642776,-3292.424231,0.00013641,2]
[331442967,1720416642785,-2662.815406,0.00013641,2]
[331442968,1720416642795,-1767.202136,0.00013641,2]
[331442969,1720416642805,-3292.424231,0.00013641,2]
[331442970,1720416642816,-2550.929376,0.00013641,2]
[331442971,1720416642826,-1804.100146,0.00013641,2]
[331442972,1720416642835,-150.0,0.00013641,2]
[331442973,1720416642847,-1000.0,0.00013642,2]
[331442974,1720416642856,-150.0,0.00013653,2]
[331442975,1720416642865,-150.0,0.00013663,2]
[331442976,1720416642875,-150.0,0.00013664,2]
[331442977,1720416642885,-150.0,0.00013667,2]
[331442978,1720416642894,-150.0,0.00013668,2]
[331442979,1720416642904,-150.0,0.00013669,2]
[331442980,1720416642913,-1000.0,0.0001367,2]
[331442981,1720416642922,-500.0,0.0001367,2]
[331442982,1720416642932,-150.0,0.00013674,2]
[331442983,1720416642941,-150.64423964,0.00013677,2]
[331442984,1720416642951,-179.1953478,0.00013679,2]
[331442985,1720416642961,-8881.8806364,0.00013689,2]
[331442986,1720416642970,-87704.032216,0.00013689,2]
[331442987,1720416642980,-31274.6355142,0.00013689,2]
[331442988,1720416642990,-11100.8784234,0.00013689,2]
[331442989,1720416642999,-2000.0,0.00013698,2]
[331442990,1720416643009,-200.0,0.00013698,2]
[331442991,1720416643019,-500.0,0.00013698,2]
[331442992,1720416643028,-500.0,0.00013698,2]
[331442993,1720416643038,-500.0,0.00013698,2]
[331442994,1720416643047,-370.95479622,0.00013698,2]
[331442995,1720416643057,-500.0,0.00013698,2]
[331442996,1720416643067,-500.0,0.00013698,2]
[331442997,1720416643076,-500.0,0.00013698,2]
[331442998,1720416643085,-500.0,0.00013698,2]
[331442999,1720416643096,-500.0,0.00013698,2]
[331443000,1720416643106,-438.49062662,0.00013698,2]
[331443001,1720416643116,-500.0,0.00013698,2]
[331443002,1720416643126,-500.0,0.00013698,2]
[331443003,1720416643140,-500.0,0.00013698,2]
[331443004,1720416643149,-338.59316593,0.00013698,2]
[331443005,1720416643159,-500.0,0.00013698,2]
[331443006,1720416643168,-500.0,0.00013698,2]
[331443007,1720416643179,-500.0,0.00013698,2]
[331443008,1720416643188,-1000.0,0.00013698,5]
[331443009,1720416643198,-1102.48349703,0.00013698,5]
[331443010,1720416643209,-2269.58618,0.00013698,2]
[331443011,1720416643218,-496.90910313,0.00013698,2]
[331443012,1720416643227,-200.00000004,0.00013698,2]
[331443013,1720416643237,-200.0,0.00013699,2]
[331443014,1720416643247,-200.0,0.00013699,2]
[331443015,1720416643256,-200.0,0.00013699,2]
[331443016,1720416643266,-200.0,0.00013699,2]
[331443017,1720416643275,-4562.5,0.00013699,2]
[331443018,1720416643285,-2140.95,0.00013699,2]
[331443019,1720416643295,-10000.0,0.00013699,2]
[331443020,1720416643304,-250.0,0.00013699,2]
[331443021,1720416643314,-12905.24,0.00013699,2]
[331443022,1720416643324,-200.0,0.00013699,2]
[331443023,1720416643333,-500.0,0.00013699,2]
[331443024,1720416643345,-1500.0,0.00013699,5]
[331443025,1720416643355,-2751.0,0.00013699,2]
[331443026,1720416643364,-150.0,0.00013699,2]
[331443027,1720416643374,-150.0,0.00013699,2]
[331443028,1720416643383,-150.0,0.00013699,2]
[331443029,1720416643393,-150.076022,0.00013699,2]
[331443030,1720416643403,-150.0,0.00013699,2]
[331443031,1720416643412,-1000.0,0.000137,5]
[331443032,1720416643422,-165.89,0.000137,2]
[331443033,1720416643432,-165.89,0.000137,2]
[331443034,1720416643442,-7500.0,0.00013705,2]
[331443035,1720416643452,-203.0,0.0001373,2]
[331443036,1720416643462,-12777.11077048,0.00013736,2]
[331443037,1720416643472,-150.0,0.00013781,2]
[331443038,1720416643481,-150.0,0.00013781,2]
[331443039,1720416643491,-150.0,0.00013781,2]
[331443040,1720416643500,-1200.0,0.000138,5]
[331443041,1720416643510,-176.39412,0.00013805,2]
[331443042,1720416643520,-193.75241,0.00013805,2]
[331443043,1720416643529,-180.656687,0.00013805,2]
[331443044,1720416643539,-196.392427,0.00013805,2]
[331443045,1720416643548,-721.581319,0.00013805,2]
[331443046,1720416643558,-229.044622,0.00013805,2]
[331443047,1720416643568,-3292.424231,0.00013805,2]
[331443048,1720416643577,-2662.815406,0.00013805,2]
[331443049,1720416643587,-1767.202136,0.00013805,2]
[331443050,1720416643598,-152.696415,0.00013805,2]
[331443051,1720416643607,-3292.424231,0.00013805,2]
[331443052,1720416643617,-169.482338,0.00013805,2]
[331443053,1720416643626,-183.066611,0.00013805,2]
[331443054,1720416643636,-2550.929376,0.00013805,2]
[331443055,1720416643646,-1804.100146,0.00013805,2]
[331443056,1720416643655,-2000.0,0.00013835,2]
[331443057,1720416643664,-200.0,0.00013835,2]
[331443058,1720416643674,-298.21104625,0.00013889,2]
[331443059,1720416643683,-151.0,0.0001389,2]
[331443060,1720416643693,-151.0,0.0001389,2]
[331443061,1720416643702,-151.0,0.0001389,2]
[331443062,1720416643712,-151.0,0.0001389,2]
[331443063,1720416643721,-151.0,0.0001389,2]
[331443064,1720416643731,-252.012712,0.0001389,2]
[331443065,1720416643740,-151.0,0.0001389,2]
[331443066,1720416643749,-151.0,0.0001389,2]
[331443067,1720416643759,-151.0,0.0001389,2]
[331443068,1720416643768,-448.278533,0.0001389,2]
[331443069,1720416643777,-151.0,0.0001389,2]
[331443070,1720416643787,-448.278533,0.0001389,2]
[331443071,1720416643796,-151.0,0.0001389,2]
[331443072,1720416643805,-151.0,0.0001389,2]
[331443073,1720416643814,-176.798021,0.0001389,2]
[331443074,1720416643824,-158.169913,0.0001389,2]
[331443075,1720416643833,-151.0,0.0001389,2]
[331443076,1720416643843,-151.0,0.0001389,2]
[331443077,1720416643852,-25000.0,0.000139,2]
[331443078,1720416643862,-167.81484512,0.000139,2]
[331443079,1720416643871,-178.45990259,0.000139,2]
[331443080,1720416643881,-151.0,0.000139,2]
[331443081,1720416643890,-151.0,0.000139,2]
[331443082,1720416643899,-151.0,0.000139,2]
[331443083,1720416643908,-182.34687994,0.000139,2]
[331443084,1720416643917,-151.0,0.000139,2]
[331443085,1720416643927,-151.0,0.000139,2]
[331443086,1720416643936,-151.0,0.000139,2]
[331443087,1720416643945,-168.81212,0.000139,2]
[331443088,1720416643954,-151.0,0.000139,2]
[331443089,1720416643964,-168.81212,0.000139,2]
[331443090,1720416643973,-151.0,0.000139,2]
[331443091,1720416643982,-151.0,0.000139,2]
[331443092,1720416643991,-151.0,0.000139,2]
[331443093,1720416644001,-176.889692,0.000139,2]
[331443094,1720416644010,-176.889692,0.000139,2]
[331443095,1720416644020,-200.0,0.000139,5]
[331443096,1720416644029,-178.04122079,0.000139,2]
[331443097,1720416644039,-946.17967956,0.000139,2]
[331443098,1720416644049,-5897.70131767,0.000139,2]
[331443099,1720416644058,-204.47380482,0.000139,2]
[331443100,1720416644068,-192.64367931,0.00013913,2]
[331443101,1720416644078,-1040.25469347,0.00013964,2]
[331443102,1720416644087,-159.1426119,0.00013964,2]
[331443103,1720416644098,-2284.23633545,0.00013964,2]
[331443104,1720416644107,-1000.0,0.0001397,2]
[331443105,1720416644117,-1000.0,0.0001397,2]
[331443106,1720416644127,-1000.0,0.0001397,2]
[331443107,1720416644136,-500.0,0.0001397,2]
[331443108,1720416644149,-500.0,0.0001397,2]
[331443109,1720416644158,-500.0,0.0001397,2]
[331443110,1720416644167,-2000.0,0.00013973,3]
[331443111,1720416644178,-2000.0,0.00013973,2]
[331443112,1720416644187,-200.0,0.00013973,2]
[331443113,1720416644197,-198.661282,0.00013973,2]
[331443114,1720416644206,-151.0,0.00013973,2]
[331443115,1720416644216,-151.0,0.00013973,2]
[331443116,1720416644227,-198.661282,0.00013973,2]
[331443117,1720416644236,-151.0,0.00013973,2]
[331443118,1720416644245,-151.0,0.00013973,2]
[331443119,1720416644254,-165.070133,0.00013973,2]
[331443120,1720416644264,-565.808903,0.00013973,2]
[331443121,1720416644273,-165.070133,0.00013973,2]
[331443122,1720416644282,-565.808903,0.00013973,2]
[331443123,1720416644291,-151.0,0.00013973,2]
[331443124,1720416644300,-151.0,0.00013973,2]
[331443125,1720416644309,-151.0,0.00013973,2]
[331443126,1720416644319,-213.2389,0.00013973,2]
[331443127,1720416644328,-213.2389,0.00013973,2]
[331443128,1720416644337,-900.540487,0.00013973,2]
[331443129,1720416644349,-258.47249,0.00013973,2]
[331443130,1720416644359,-151.0,0.00013973,2]
[331443131,1720416644368,-900.540487,0.00013973,2]
[331443132,1720416644378,-868.0,0.00013983,2]
[331443133,1720416644387,-153.5829,0.00013983,2]
[331443134,1720416644397,-151.0,0.00013983,2]
[331443135,1720416644406,-151.0,0.00013983,2]
[331443136,1720416644415,-151.0,0.00013983,2]
[331443137,1720416644425,-151.0,0.00013983,2]
[331443138,1720416644434,-154.681278,0.00013983,2]
[331443139,1720416644443,-154.681278,0.00013983,2]
[331443140,1720416644453,-179.1953478,0.0001399,2]
[331443141,1720416644462,-153.32465,0.00013992,2]
[331443142,1720416644472,-151.0,0.00013992,2]
[331443143,1720416644481,-151.0,0.00013992,2]
[331443144,1720416644491,-151.0,0.00013992,2]
[331443145,1720416644500,-151.0,0.00013992,2]
[331443146,1720416644509,-151.0,0.00013992,2]
[331443147,1720416644519,-151.0,0.00013992,2]
[331443148,1720416644528,-459.772665,0.00013992,2]
[331443149,1720416644537,-459.772665,0.00013992,2]
[331443150,1720416644547,-151.0,0.00013992,2]
[331443151,1720416644556,-229.891555,0.00013992,2]
[331443152,1720416644565,-156.757454,0.00013992,2]
[331443153,1720416644575,-229.891555,0.00013992,2]
[331443154,1720416644584,-151.0,0.00013992,2]
[331443155,1720416644594,-151.0,0.00013992,2]
[331443156,1720416644604,-151.0,0.00013992,2]
[331443157,1720416644613,-151.0,0.00013992,2]
[331443158,1720416644622,-181.051779,0.00013996,2]
[331443159,1720416644635,-181.051779,0.00013996,2]
[331443160,1720416644644,-151.0,0.00013996,2]
[331443161,1720416644653,-246.415583,0.00013996,2]
[331443162,1720416644662,-151.0,0.00013996,2]